bitfinex-derivatives/quotes_SOLF0:USTF0_20240827
["timestamp","ask_amount","ask_price","bid_price","bid_amount"]
[1724800301120,3.431603,147.12,147.06,0.0508342]
[1724800301121,3.3986,147.08,147.06,0.0508342]
[1724800301424,28.76693494,147.09,147.06,0.0508342]
[1724800301721,32.1188,147.07,147.06,0.0508342]
[1724800304220,32.1193,147.05,147.04,1.0]
[1724800305325,28.72,147.05,147.04,1.0]
[1724800310335,32.1193,147.05,147.04,1.0]
[1724800310831,28.72,147.05,146.98,1.3225]
[1724800311030,28.72,147.01,146.99,3.52586746]
[1724800311229,28.72,147.01,146.98,1.3225]
[1724800311230,28.72,147.01,146.97,3.401]
[1724800311425,28.72,147.03,146.98,3.52689643]
[1724800311624,28.72,147.03,146.95,30.0255]
[1724800311823,3.3997,147.04,146.98,0.04848359]
[1724800312032,14.8897,147.04,147.0,0.05048122]
[1724800312231,0.05095488,147.02,147.0,0.05048122]
[1724800312536,11.54095488,147.02,147.0,0.05048122]
[1724800312924,11.49,147.01,147.0,0.05048122]
[1724800314131,3.45105488,147.02,147.0,0.05048122]
[1724800315827,3.4002,147.01,147.0,0.05048122]
[1724800316034,32.1302,147.01,147.0,0.05048122]
[1724800318738,3.4002,147.01,147.0,0.05048122]
[1724800319735,3.45095488,147.02,147.0,0.05048122]
[1724800319938,0.05095488,147.02,147.0,0.05048122]
[1724800320343,3.3989,147.07,147.03,3.3997]
[1724800321239,3.3989,147.07,147.04,0.04853676]
[1724800321240,28.73,147.07,147.04,0.04853676]
[1724800321438,28.73,147.05,147.04,0.04853676]
[1724800321642,28.73,147.05,146.97,3.4011]
[1724800321832,28.73,147.01,146.97,3.4011]
[1724800322643,0.05204342,147.0,146.98,0.04802674]
[1724800322839,28.73,146.99,146.98,0.04802674]
[1724800323043,0.05204342,147.0,146.98,0.04802674]
[1724800323234,3.4007,146.99,146.98,0.04802674]
[1724800323444,0.05204342,147.0,146.98,0.04802674]
[1724800324345,0.05204342,147.0,146.99,3.4007]
[1724800324539,0.05204342,147.0,146.98,0.04802674]
[1724800325944,3.45254342,147.0,146.98,0.04802674]
[1724800326148,0.05204342,147.0,146.98,0.04802674]
[1724800326940,3.45254342,147.0,146.98,0.04802674]
[1724800328149,0.05204342,147.0,146.98,0.04802674]
[1724800328742,0.05204342,147.0,146.99,3.4007]
[1724800328946,0.05204342,147.0,146.98,0.04802674]
[1724800331544,0.05204342,147.0,146.98,3.44892674]
[1724800331849,0.05204342,147.0,146.98,0.04802674]
[1724800332568,3.45264342,147.0,146.98,0.04802674]
[1724800334355,0.05204342,147.0,146.98,3.44892674]
[1724800334759,0.05204342,147.0,146.98,0.04802674]
[1724800335257,3.45254342,147.0,146.98,0.04802674]
[1724800336257,0.05204342,147.0,146.98,0.04802674]
[1724800337062,0.05204342,147.0,146.99,3.4007]
[1724800337858,0.05204342,147.0,146.98,3.44892674]
[1724800339252,3.45254342,147.0,146.98,0.04802674]
[1724800339453,0.05204342,147.0,146.98,0.04802674]
[1724800340248,3.45264342,147.0,146.98,0.04802674]
[1724800341654,32.1307,146.99,146.98,0.04802674]
[1724800341855,28.73,146.99,146.91,3.8417]
[1724800342069,28.73,146.96,146.91,3.8417]
[1724800342260,3.4017,146.95,146.91,4.7221]
[1724800342468,28.73,146.94,146.85,2.5446]
[1724800342667,28.73,146.94,146.85,3.8643]
[1724800342867,0.04649511,146.91,146.89,3.4028]
[1724800343354,28.73,146.9,146.88,0.04868501]
[1724800344589,28.73,146.9,146.81,2.5568]
[1724800344590,28.73,146.89,146.81,2.5568]
[1724800344966,3.8002,146.95,146.81,2.5568]
[1724800345270,3.8002,146.95,146.84,28.73]
[1724800345564,6.7953,147.13,146.81,2.5568]
[1724800345565,0.0466323,146.91,146.88,28.77385843]
[1724800345773,0.04542425,146.91,146.88,32.21057487]
[1724800346089,0.04542425,146.91,146.9,3.4028]
[1724800348775,0.04542425,146.91,146.88,3.45112414]
[1724800350258,0.04542425,146.91,146.89,3.403]
[1724800350662,0.04542425,146.91,146.88,3.45132414]
[1724800350963,0.04542425,146.91,146.88,0.04812414]
[1724800352463,0.04542425,146.91,146.88,3.45132414]
[1724800354976,3.44812425,146.91,146.88,0.04812414]
[1724800356266,3.44812425,146.91,146.88,3.45132414]
[1724800356864,0.04542425,146.91,146.88,3.45132414]
[1724800357176,0.04542425,146.91,146.88,0.04812414]
[1724800357370,0.04542425,146.91,146.9,3.4028]
[1724800357969,0.04542425,146.91,146.9,32.1328]
[1724800358470,0.04542425,146.91,146.9,33.3547]
[1724800359069,253.2,147.09,146.9,29.9519]
[1724800359289,28.73,147.02,146.93,28.73]
[1724800360165,0.04618594,146.99,146.96,0.04949476]
[1724800361271,0.04618594,146.99,146.97,3.401]
[1724800363070,28.73,147.06,146.96,0.04949476]
[1724800363266,28.73,147.06,146.97,28.73]
[1724800363666,29.9559,147.1,147.01,28.73]
[1724800363868,28.73,147.11,147.01,28.73]
[1724800364106,0.04566633,147.07,147.05,28.77908946]
[1724800364268,0.05022544,147.07,147.05,32.21039514]
[1724800364468,28.73,147.15,147.05,32.16298673]
[1724800364676,28.73,147.15,147.07,28.73]
[1724800365072,3.3974,147.14,147.09,3.3981]
[1724800365575,0.05097732,147.13,147.1,0.05049505]
[1724800365776,28.78097732,147.13,147.1,0.05049505]
[1724800366068,35.92097732,147.13,147.1,0.05049505]
[1724800366296,3.3977,147.12,147.1,0.05049505]
[1724800366778,35.87,147.11,147.1,0.05049505]
[1724800367493,3.3982,147.1,147.01,1.2668]
[1724800368184,39.2685,147.09,147.01,2.592]
[1724800368367,39.2685,147.09,147.04,0.05078997]
[1724800368368,0.052002,147.06,147.04,0.05078997]
[1724800370269,0.052002,147.06,147.04,3.45018997]
[1724800370479,0.052002,147.06,147.04,0.05078997]
[1724800370682,0.052002,147.06,147.04,3.45028997]
[1724800373478,0.052002,147.06,147.05,3.3993]
[1724800374079,0.052002,147.06,147.04,0.05078997]
[1724800374675,0.052002,147.06,147.04,3.45018997]
[1724800375373,0.052002,147.06,147.05,3.3993]
[1724800375790,2.5952,147.16,147.05,35.87]
[1724800375973,2.5952,147.16,147.06,3.47078187]
[1724800376479,3.3974,147.14,147.09,3.3983]
[1724800376682,0.05225269,147.13,147.1,0.04311189]
[1724800378480,3.44985269,147.13,147.1,0.04311189]
[1724800381883,3.3977,147.12,147.1,0.04311189]
[1724800383797,0.05225269,147.13,147.1,0.04311189]
[1724800384391,3.44985269,147.13,147.1,0.04311189]
[1724800384597,0.05225269,147.13,147.1,0.04311189]
[1724800385787,340.3237,147.21,147.12,35.87]
[1724800386087,28.71,147.19,147.12,3.3976]
[1724800386291,28.71,147.18,147.09,28.71]
[1724800386495,3.3972,147.15,147.09,28.71]
[1724800386694,3.3972,147.15,147.11,3.3977]
[1724800386897,0.04377068,147.14,147.12,0.04425645]
[1724800389796,0.04377068,147.14,147.13,3.3975]
[1724800393292,1.3237,147.21,147.12,28.75425645]
[1724800393496,1.3237,147.21,147.15,28.71]
[1724800394095,3.396,147.2,147.15,28.71]
[1724800394295,0.03886943,147.19,147.16,0.04768206]
[1724800395093,28.71,147.17,147.16,0.04768206]
[1724800395297,32.1065,147.17,147.16,0.04768206]
[1724800395597,28.71,147.17,147.08,1.2248]
[1724800395994,28.71,147.15,147.05,40.3447]
[1724800396281,28.71,147.13,147.05,1.2347]
[1724800396503,3.3984,147.09,147.08,0.04462293]
[1724800397900,32.1084,147.09,147.08,0.04462293]
[1724800398226,35.89,147.09,146.99,1.2482]
[1724800398395,35.89,147.06,146.99,1.2482]
[1724800398595,3.3998,147.03,146.99,1.2482]
[1724800398798,3.3998,147.03,146.98,3.4009]
[1724800399294,0.04342337,147.02,146.99,0.04874583]
[1724800399803,3.44342337,147.02,146.99,0.04874583]
[1724800399994,0.04342337,147.02,146.99,0.04874583]
[1724800400297,3.4003,147.01,146.99,0.04874583]
[1724800400900,3.44342337,147.02,146.99,0.04874583]
[1724800402390,3.4003,147.01,146.99,0.04874583]
[1724800403197,0.04342337,147.02,146.99,0.04874583]
[1724800404302,3.4003,147.01,146.99,0.04874583]
[1724800404999,39.2905,147.0,146.99,0.04874583]
[1724800406108,3.4013,146.97,146.93,3.402]
[1724800407202,0.04298773,146.96,146.94,0.05026443]
[1724800408838,3.44458773,146.96,146.94,0.05026443]
[1724800409006,35.93298773,146.96,146.94,0.05026443]
[1724800409441,35.93298773,146.96,146.79,6.8106]
[1724800409442,35.93298773,146.96,146.86,1.3239]
[1724800409703,35.89,146.93,146.86,1.3239]
[1724800409900,3.4025,146.92,146.88,3.4031]
[1724800410305,35.89,146.93,146.88,3.4031]
[1724800410516,0.0499069,146.92,146.89,0.04747885]
[1724800410814,35.89,146.9,146.89,0.04747885]
[1724800411008,35.89,146.9,146.83,3.4043]
[1724800411213,35.89,146.88,146.81,5.98301687]
[1724800411601,3.4039,146.86,146.82,3.4046]
[1724800412209,0.05097247,146.85,146.83,0.04605804]
[1724800412412,3.45497247,146.85,146.83,0.04605804]
[1724800412607,0.05097247,146.85,146.83,0.04605804]
[1724800413513,3.4042,146.84,146.83,0.04605804]
[1724800413914,39.2942,146.84,146.83,0.04605804]
[1724800414705,3.4049,146.81,146.8,1.0]
[1724800416308,39.34276789,146.82,146.8,1.0]
[1724800419017,0.04806789,146.82,146.8,1.0]
[1724800419408,3.45286789,146.82,146.8,1.0]
[1724800419615,0.04806789,146.82,146.8,1.0]
[1724800420113,3.4049,146.81,146.8,1.0]
[1724800423417,39.29162121,146.82,146.72,4.70153479]
[1724800423613,35.89,146.78,146.72,1.2513]
[1724800424018,35.89,146.75,146.69,1.2898]
[1724800424313,35.89,146.73,146.69,1.2898]
[1724800424521,35.94051627,146.73,146.71,0.05155143]
[1724800425116,3.4069,146.72,146.71,0.05155143]
[1724800425713,3.45741627,146.73,146.71,0.05155143]
[1724800426024,0.05051627,146.73,146.71,0.05155143]
[1724800427351,3.4069,146.72,146.71,0.05155143]
[1724800428922,39.2969,146.72,146.71,0.05155143]
[1724800429111,3.4069,146.72,146.71,0.05155143]
[1724800433026,3.4076,146.69,146.65,1.2898]
[1724800433241,28.77,146.66,146.62,1.3329]
[1724800434132,0.04719718,146.65,146.63,0.04876006]
[1724800435125,0.04719718,146.65,146.64,3.4088]
[1724800435731,36.0,146.72,146.63,0.04876006]
[1724800435934,36.0,146.72,146.62,37.3329]
[1724800436131,39.4071,146.72,146.68,3.4078]
[1724800436650,0.05108815,146.71,146.69,3.45149301]
[1724800436947,0.04778138,146.71,146.69,0.04399301]
[1724800437240,36.0,146.76,146.7,3.4074]
[1724800437463,36.0,146.78,146.69,1.37039301]
[1724800437637,36.0,146.78,146.69,1.3264]
[1724800438028,36.0,146.76,146.69,1.3264]
[1724800438239,36.0,146.76,146.71,0.04661423]
[1724800438240,0.0451729,146.74,146.71,0.04661423]
[1724800438530,36.0,146.73,146.71,0.04661423]
[1724800440940,39.4069,146.72,146.71,0.04661423]
[1724800441141,36.0,146.72,146.66,82.3327262]
[1724800441347,36.0,146.69,146.66,82.3327262]
[1724800441865,1.2739,146.73,146.66,82.3327262]
[1724800441866,36.0,146.71,146.66,82.3327262]
[1724800442235,0.04909638,146.7,146.67,0.0471557]
[1724800443246,3.4078,146.69,146.67,0.0471557]
[1724800444047,0.04909638,146.7,146.67,0.0471557]
[1724800445042,36.04909638,146.7,146.67,0.0471557]
[1724800445638,0.04909638,146.7,146.67,0.0471557]
[1724800446174,0.04909638,146.7,146.69,3.4076]
[1724800446541,0.04909638,146.7,146.67,0.0471557]
[1724800447243,36.0,146.75,146.67,0.0471557]
[1724800447474,36.0,146.77,146.67,36.0471557]
[1724800447642,36.0,146.77,146.67,36.0]
[1724800447858,3.4063,146.75,146.7,3.4073]
[1724800448047,36.0,146.77,146.67,36.0]
[1724800448271,0.04566865,146.73,146.68,1.3328]
[1724800448443,0.04566865,146.73,146.71,3.45848529]
[1724800449251,0.04566865,146.73,146.72,3.4069]
[1724800450568,36.0,146.79,146.69,37.283]
[1724800450765,36.0,146.82,146.71,36.0]
[1724800451057,36.0,146.81,146.71,36.0]
[1724800451349,36.0,146.81,146.69,37.283]
[1724800451547,0.04612632,146.76,146.74,0.0521175]
[1724800451755,36.0,146.81,146.76,3.406]
[1724800451958,0.05155974,146.8,146.77,0.0464052]
[1724800452257,0.05155974,146.8,146.77,3.4522052]
[1724800453148,0.05155974,146.8,146.78,3.4054]
[1724800453353,0.05155974,146.8,146.77,0.0464052]
[1724800453761,0.05155974,146.8,146.79,3.4053]
[1724800453959,36.0,146.88,146.78,36.0]
[1724800454165,36.0,146.88,146.79,1.3119]
[1724800454467,36.0,146.88,146.83,3.4042]
[1724800454951,0.04604531,146.87,146.84,3.44904125]
[1724800455158,0.04604531,146.87,146.84,0.04494125]
[1724800455656,0.04604531,146.87,146.85,3.4037]
[1724800456452,0.04604531,146.87,146.84,0.04494125]
[1724800456959,0.04604531,146.87,146.84,3.44884125]
[1724800458250,0.04604531,146.87,146.84,0.04494125]
[1724800458959,0.04604531,146.87,146.86,3.4037]
[1724800459458,0.04604531,146.87,146.84,3.44894125]
[1724800459650,0.04604531,146.87,146.84,0.04494125]
[1724800460854,0.04604531,146.87,146.86,3.4037]
[1724800461362,0.04604531,146.87,146.84,0.04494125]
[1724800462270,36.04604531,146.87,146.84,0.04494125]
[1724800462600,36.0,146.85,146.79,2.5874]
[1724800462872,36.0,146.87,146.79,2.5874]
[1724800463067,3.4028,146.9,146.82,36.0]
[1724800463275,3.4028,146.9,146.82,39.35490581]
[1724800463462,0.04631292,146.87,146.85,0.05173437]
[1724800463955,0.04631292,146.87,146.85,3.45553437]
[1724800464660,16.23744783,146.96,146.85,0.05173437]
[1724800464661,3.4023,146.92,146.85,0.05173437]
[1724800464860,36.0,146.95,146.84,36.0]
[1724800465061,36.0,146.95,146.85,1.2861]
[1724800465356,36.0,146.95,146.86,3.3310856]
[1724800465757,0.05174532,146.92,146.89,0.04636934]
[1724800468766,0.05174532,146.92,146.91,3.4025]
[1724800471467,36.0,147.05,146.91,10.28]
[1724800471769,36.0,147.05,146.95,36.0]
[1724800471960,36.0,147.05,146.96,3.41023383]
[1724800472365,0.04687722,147.02,146.99,0.04890792]
[1724800472562,0.04687722,147.02,147.01,3.4002]
[1724800473467,1.0,147.2,146.97,39.46325278]
[1724800473468,27.22,147.19,147.0,36.0]
[1724800473665,27.22,147.19,146.97,3.46325278]
[1724800473666,36.0,147.13,147.03,36.0]
[1724800473881,39.33980809,147.13,147.03,36.0]
[1724800474172,39.33980809,147.13,147.06,3.3989]
[1724800474373,3.3979,147.11,147.06,3.3989]
[1724800474568,0.05124063,147.1,147.07,0.04365749]
[1724800475368,3.3984,147.09,147.07,0.04365749]
[1724800475573,0.05124063,147.1,147.07,0.04365749]
[1724800475963,3.98764063,147.1,147.07,0.04365749]
[1724800476165,3.3986,147.08,147.07,0.04365749]
[1724800478378,3.3984,147.09,147.07,0.04365749]
[1724800478562,3.98764063,147.1,147.07,0.04365749]
[1724800478867,3.9364,147.1,147.01,3.36473114]
[1724800479368,3.3988,147.08,147.0,36.0]
[1724800479571,3.9364,147.1,147.0,36.0]
[1724800479771,0.04366413,147.06,147.05,3.3992]
[1724800479966,0.0440533,147.07,147.05,3.3992]
[1724800481271,0.0440533,147.07,147.06,3.3991]
[1724800482367,0.0440533,147.07,147.04,0.04480183]
[1724800483077,0.0440533,147.07,147.05,3.3993]
[1724800486870,0.0440533,147.07,147.06,3.3991]
[1724800487379,0.0440533,147.07,147.05,3.3992]
[1724800488172,0.0440533,147.07,147.06,3.3991]
[1724800489377,0.0440533,147.07,147.05,3.3992]
[1724800490075,0.0440533,147.07,147.04,3.44430183]
[1724800493978,0.0440533,147.07,147.06,28.7]
[1724800494683,0.0440533,147.07,147.06,32.0991]
[1724800497081,3.398,147.11,147.08,3.3985]
[1724800497388,28.7,147.15,147.06,28.7]
[1724800497894,34.7257547,147.17,147.08,28.7]
[1724800498191,0.04571714,147.14,147.11,0.05210762]
[1724800498389,3.3975,147.13,147.11,0.05210762]
[1724800500190,28.74571714,147.14,147.11,0.05210762]
[1724800501701,3.3977,147.12,147.11,0.05210762]
[1724800502392,3.3986,147.09,147.03,2.5646]
[1724800502587,28.7,147.14,147.04,28.7]
[1724800502993,28.7,147.12,147.02,3.41809441]
[1724800503190,28.7,147.09,147.0,28.7]
[1724800503389,28.7,147.07,146.99,13.64933878]
[1724800503696,0.04513853,147.06,147.03,0.0495655]
[1724800504090,3.3995,147.04,147.03,0.0495655]
[1724800504412,0.04513853,147.06,147.03,0.0495655]
[1724800505193,3.44433853,147.06,147.03,0.0495655]
[1724800505395,0.04513853,147.06,147.03,0.0495655]
[1724800506795,3.3995,147.05,147.03,0.0495655]
[1724800508089,0.04513853,147.06,147.03,0.0495655]
[1724800508899,3.3995,147.05,147.03,0.0495655]
[1724800509098,0.04513853,147.06,147.03,0.0495655]
[1724800509497,32.0995,147.04,147.03,0.0495655]
[1724800509900,32.0995,147.04,146.95,1.2545]
[1724800509901,3.4005,147.0,146.95,1.2545]
[1724800510202,28.7,147.0,146.94,83.44033208]
[1724800510406,3.4009,146.98,146.93,5.8979]
[1724800510599,28.7,147.0,146.93,4.6845]
[1724800510798,28.7,147.0,146.93,3.4021]
[1724800511002,28.7,147.0,146.95,0.0475561]
[1724800511003,0.04950526,146.98,146.95,0.0475561]
[1724800511900,3.45050526,146.98,146.95,0.0475561]
[1724800512114,0.04950526,146.98,146.95,0.0475561]
[1724800512513,0.04950526,146.98,146.97,3.4012]
[1724800512899,0.04950526,146.98,146.95,0.0475561]
[1724800514100,28.74950526,146.98,146.95,0.0475561]
[1724800514898,3.4012,146.97,146.95,0.0475561]
[1724800515098,0.04950526,146.98,146.95,0.0475561]
[1724800516602,0.04950526,146.98,146.96,3.4012]
[1724800517606,0.04950526,146.98,146.95,1.2620561]
[1724800519315,0.04950526,146.98,146.95,4.6635561]
[1724800520605,3.45040526,146.98,146.95,1.2620561]
[1724800520908,0.04950526,146.98,146.95,1.2620561]
[1724800521210,0.04950526,146.98,146.96,28.7]
[1724800521512,0.04950526,146.98,146.97,3.45644574]
[1724800521703,29.9577,147.05,146.96,29.9163]
[1724800522011,2.5706,147.07,146.97,28.7]
[1724800522012,31.2706,147.07,146.97,28.7]
[1724800522404,3.3997,147.04,146.97,28.7]
[1724800522801,0.04593936,147.02,146.99,0.04414558]
[1724800524010,3.4005,147.0,146.99,0.04414558]
[1724800524211,0.04593936,147.02,146.99,0.04414558]
[1724800524706,3.4005,147.0,146.99,0.04414558]
[1724800524908,0.04593936,147.02,146.99,0.04414558]
[1724800525313,3.4004,147.01,146.99,0.04414558]
[1724800525514,0.04593936,147.02,146.99,0.04414558]
[1724800525718,28.7,147.01,146.99,0.04414558]
[1724800526011,3.4005,147.0,146.99,0.04414558]
[1724800526319,28.7,147.0,146.9,31.2349]
[1724800526513,28.7,147.0,146.93,3.4019]
[1724800526714,28.7,147.0,146.9,31.2349]
[1724800527017,3.4016,146.95,146.92,3.4022]
[1724800527410,3.45359016,146.95,146.92,3.45174989]
[1724800527621,3.45359016,146.95,146.92,0.04954989]
[1724800528013,0.05199016,146.95,146.92,3.45164989]
[1724800528321,0.05199016,146.95,146.92,28.74954989]
[1724800528515,0.05199016,146.95,146.92,32.15164989]
[1724800529219,0.05199016,146.95,146.93,3.4019]
[1724800531222,0.05199016,146.95,146.93,3.4021]
[1724800531434,0.05199016,146.95,146.92,28.74954989]
[1724800532315,0.05199016,146.95,146.94,3.4018]
[1724800532517,0.05199016,146.95,146.92,28.74954989]
[1724800532717,0.05199016,146.95,146.92,0.04954989]
[1724800532918,0.05199016,146.95,146.92,3.45174989]
[1724800533824,0.05199016,146.95,146.92,0.04954989]
[1724800534120,3.4021,146.93,146.92,0.04954989]
[1724800536341,28.7,146.94,146.85,1.2151]
[1724800536631,28.7,146.92,146.85,1.2151]
[1724800536822,3.4027,146.91,146.86,6.78389801]
[1724800537321,0.04712707,146.9,146.87,0.05121463]
[1724800538531,0.04712707,146.9,146.88,28.7]
[1724800538742,0.04712707,146.9,146.89,3.403]
[1724800539734,0.04712707,146.9,146.88,3.4032]
[1724800541040,0.04712707,146.9,146.87,3.45461463]
[1724800541333,0.04712707,146.9,146.87,0.05121463]
[1724800542329,3.44992707,146.9,146.87,0.05121463]
[1724800544139,0.04712707,146.9,146.87,0.05121463]
[1724800544634,0.04712707,146.9,146.88,3.4031]
[1724800545539,0.04712707,146.9,146.89,3.403]
[1724800550243,1.2921,146.98,146.92,3.4022]
[1724800550640,1.2358,146.99,146.91,28.7]
[1724800551372,0.04611972,146.96,146.94,0.04305616]
[1724800551741,32.1016,146.95,146.94,0.04305616]
[1724800552148,3.4016,146.95,146.94,0.04305616]
[1724800557151,0.04611972,146.96,146.94,0.04305616]
[1724800557351,0.04611972,146.96,146.95,3.4016]
[1724800557552,0.04611972,146.96,146.94,0.04305616]
[1724800557950,0.04611972,146.96,146.94,3.44485616]
[1724800558151,0.04611972,146.96,146.94,0.04305616]
[1724800558657,3.4016,146.95,146.94,0.04305616]
[1724800559051,3.4023,146.93,146.89,3.4029]
[1724800559275,32.1023,146.93,146.86,1.3184]
[1724800560152,0.05141793,146.91,146.89,3.4029]
[1724800561159,3.45401793,146.91,146.88,3.45474296]
[1724800561355,0.05141793,146.91,146.88,3.45474296]
[1724800561561,0.05141793,146.91,146.88,0.05154296]
[1724800561761,0.05141793,146.91,146.9,3.4028]
[1724800562566,0.05141793,146.91,146.9,32.1028]
[1724800562965,28.7,147.01,146.9,28.7]
[1724800563165,3.4011,146.98,146.92,28.7]
[1724800563353,3.4011,146.98,146.89,1.3042]
[1724800563354,28.7,147.03,146.94,28.7]
[1724800563657,28.7,147.07,146.97,28.7]
[1724800563874,0.0507308,147.03,147.02,3.3999]
[1724800564081,0.0507308,147.03,147.01,0.05040777]
[1724800564082,0.05005146,147.04,147.01,28.74387265]
[1724800564474,0.05005146,147.04,147.03,3.3996]
[1724800564659,28.7,147.11,147.03,3.3996]
[1724800565659,2.4903,147.13,147.06,0.04573732]
[1724800565660,0.04493537,147.08,147.06,0.04573732]
[1724800565967,0.04746199,147.08,147.06,0.04573732]
[1724800567365,3.44616199,147.08,147.06,0.04573732]
[1724800567565,28.74746199,147.08,147.06,0.04573732]
[1724800567967,3.3988,147.07,147.06,0.04573732]
[1724800569062,32.14606199,147.08,147.06,0.04573732]
[1724800569860,0.04746199,147.08,147.06,0.04573732]
[1724800572667,28.74746199,147.08,147.06,0.04573732]
[1724800574467,3.3988,147.07,147.06,0.04573732]
[1724800577863,28.74746199,147.08,147.06,0.04573732]
[1724800578174,0.04746199,147.08,147.06,0.04573732]
[1724800578561,3.44626199,147.08,147.06,0.04573732]
[1724800578773,0.04746199,147.08,147.06,0.04573732]
[1724800579352,3.44616199,147.08,147.06,0.04573732]
[1724800579973,0.04746199,147.08,147.06,0.04573732]
[1724800580667,0.04746199,147.08,147.06,3.48887651]
[1724800581263,0.04746199,147.08,147.07,3.3988]
[1724800586669,0.04746199,147.08,147.06,3.44483732]
[1724800587784,3.3978,147.12,147.09,3.3984]
[1724800587987,3.3978,147.12,147.07,1.3388]
[1724800588273,3.3985,147.09,147.06,3.399]
[1724800588791,3.44528811,147.09,147.06,0.05174365]
[1724800589474,32.14528811,147.09,147.06,0.05174365]
[1724800589983,28.74678811,147.09,147.06,0.05174365]
[1724800591275,3.3988,147.07,147.06,0.05174365]
[1724800592667,32.0988,147.07,147.06,0.05174365]
[1724800593091,3.3997,147.04,146.97,28.7]
[1724800593295,28.7,147.05,146.98,3.32881465]
[1724800593592,3.4005,147.0,146.95,10.02]
[1724800594084,0.04456642,146.99,146.96,6.78095583]
[1724800594471,3.44526642,146.99,146.96,0.05230071]
[1724800594670,28.74456642,146.99,146.96,0.05230071]
[1724800595102,3.4009,146.98,146.96,0.05230071]
[1724800595678,28.74456642,146.99,146.96,0.05230071]
[1724800596579,28.7,146.97,146.96,0.05230071]
[1724800596785,32.1012,146.97,146.96,0.05230071]
[1724800598585,3.4019,146.94,146.91,3.4024]
[1724800599690,3.45341922,146.94,146.91,3.45315507]
[1724800599882,0.05151922,146.94,146.91,3.45315507]
[1724800600085,0.05151922,146.94,146.91,0.05075507]
[1724800601590,28.75151922,146.94,146.91,0.05075507]
[1724800602187,3.4023,146.92,146.91,0.05075507]
[1724800602381,32.1023,146.92,146.91,0.05075507]
[1724800602689,28.7,146.92,146.84,4.74982795]
[1724800602890,3.403,146.89,146.85,3.4038]
[1724800603086,28.7,146.92,146.84,4.74982795]
[1724800603600,0.04368664,146.89,146.87,0.04767835]
[1724800604086,3.44668664,146.89,146.87,0.04767835]
[1724800605786,3.4032,146.88,146.87,0.04767835]
[1724800606188,32.1032,146.88,146.87,0.04767835]
[1724800611585,28.7,146.88,146.78,2.5606]
[1724800611790,1.2131,146.91,146.78,2.5606]
[1724800611791,28.7,146.84,146.78,2.5606]
[1724800612093,32.1043,146.84,146.8,3.4049]
[1724800612498,28.7,146.84,146.81,0.05118366]
[1724800612744,0.04850017,146.83,146.81,0.05118366]
[1724800616979,0.04850017,146.83,146.81,28.75118366]
[1724800617507,0.04850017,146.83,146.81,0.05118366]
[1724800617711,0.04850017,146.83,146.82,3.4046]
[1724800621723,28.7,146.9,146.83,3.4042]
[1724800622907,0.04899217,146.88,146.85,0.04439164]
[1724800623803,28.74899217,146.88,146.85,0.04439164]
[1724800624407,3.4036,146.87,146.85,0.04439164]
[1724800627106,28.7,146.86,146.85,0.04439164]
[1724800628008,32.1037,146.86,146.85,0.04439164]
[1724800635811,28.7,146.86,146.79,3.4052]
[1724800636011,28.7,146.83,146.76,3.38639874]
[1724800636205,28.7,146.83,146.74,38.62]
[1724800636613,32.1046,146.83,146.8,3.4049]
[1724800636909,32.15064682,146.83,146.8,3.45145732]
[1724800637413,28.7,146.9,146.81,28.7]
[1724800637617,28.7,146.9,146.81,31.173]
[1724800637910,28.7,146.9,146.84,3.404]
[1724800638318,0.04300502,146.88,146.86,0.04424234]
[1724800639014,28.74300502,146.88,146.86,0.04424234]
[1724800640614,0.04300502,146.88,146.86,0.04424234]
[1724800641814,28.74300502,146.88,146.86,0.04424234]
[1724800642829,28.7,146.87,146.86,0.04424234]
[1724800643722,28.7,146.87,146.78,3.4854019]
[1724800644418,28.7,146.87,146.81,3.4048]
[1724800644614,0.04654733,146.85,146.83,0.04878548]
[1724800644822,0.04942375,146.85,146.83,3.44859644]
[1724800645626,0.04942375,146.85,146.83,0.04439644]
[1724800646423,0.04942375,146.85,146.83,3.44869644]
[1724800646724,0.04942375,146.85,146.83,0.04439644]